bitfinex/quotes_BTCUSD_20241028
["timestamp","ask_amount","ask_price","bid_price","bid_amount"]
[1730127381262,0.144967,68981.0,68980.0,0.003646]
[1730127381263,0.16768417,68981.0,68980.0,0.003646]
[1730127382749,0.02271717,68981.0,68980.0,0.003646]
[1730127382961,0.16768417,68981.0,68980.0,0.003646]
[1730127383405,0.02271717,68981.0,68980.0,0.003646]
[1730127383671,0.16768417,68981.0,68980.0,0.003646]
[1730127384744,0.144967,68981.0,68980.0,0.003646]
[1730127387463,0.289926,68983.0,68980.0,0.003646]
[1730127387464,0.144964,68983.0,68980.0,0.003646]
[1730127387726,0.000823,68987.0,68982.0,0.0824]
[1730127387944,0.000823,68987.0,68982.0,0.320464]
[1730127388172,0.000823,68987.0,68986.0,0.144956]
[1730127388383,0.000823,68987.0,68986.0,0.38998115]
[1730127388608,0.000823,68987.0,68986.0,0.48528115]
[1730127389886,0.000823,68987.0,68986.0,0.315956]
[1730127390116,0.000823,68987.0,68986.0,0.326956]
[1730127391671,0.000823,68987.0,68986.0,0.182]
[1730127392241,0.000823,68987.0,68986.0,0.196]
[1730127392711,0.000823,68987.0,68986.0,0.340956]
[1730127392885,0.000823,68987.0,68986.0,0.51028115]
[1730127393982,0.000823,68987.0,68986.0,0.49928115]
[1730127394403,0.000823,68987.0,68986.0,0.48528115]
[1730127395054,0.000823,68987.0,68986.0,0.49928115]
[1730127395521,0.000823,68987.0,68986.0,0.64978496]
[1730127395741,0.000823,68987.0,68986.0,0.66278496]
[1730127396163,0.000823,68987.0,68986.0,0.49345981]
[1730127396601,0.000823,68987.0,68986.0,0.342956]
[1730127399895,0.000823,68987.0,68986.0,0.66278496]
[1730127400104,0.000823,68987.0,68986.0,0.66778496]
[1730127400337,0.000823,68987.0,68986.0,0.49845981]
[1730127401257,0.000823,68987.0,68986.0,0.60845981]
[1730127401695,0.000823,68987.0,68986.0,0.59345981]
[1730127401923,0.000823,68987.0,68986.0,0.59845981]
[1730127412743,0.000823,68987.0,68986.0,0.82360358]
[1730127416066,0.000823,68987.0,68986.0,0.76863202]
[1730127417815,0.000824,68990.0,68989.0,0.60317515]
[1730127418074,0.000824,68990.0,68989.0,1.0203037]
[1730127418329,0.000824,68990.0,68989.0,0.91185117]
[1730127418779,0.000824,68990.0,68989.0,1.34670117]
[1730127419202,0.000824,68990.0,68989.0,1.4551185]
[1730127419422,0.000824,68990.0,68989.0,1.46511659]
[1730127419634,0.000824,68990.0,68989.0,1.47811659]
[1730127420084,0.000824,68990.0,68989.0,1.36970117]
[1730127420956,0.000824,68990.0,68989.0,1.36963021]
[1730127421212,0.000824,68990.0,68989.0,0.7747]
[1730127421423,0.000824,68990.0,68989.0,0.6028]
[1730127422354,0.000824,68990.0,68989.0,0.45785]
[1730127422770,0.000824,68990.0,68989.0,0.6028]
[1730127422991,0.000824,68990.0,68989.0,0.45785]
[1730127423224,0.000824,68990.0,68989.0,0.6028]
[1730127423467,0.000824,68990.0,68989.0,0.45785]
[1730127423692,0.000824,68990.0,68989.0,0.6028]
[1730127428750,0.000824,68990.0,68989.0,0.45785]
[1730127429875,0.000824,68990.0,68989.0,0.6028]
[1730127432933,0.000824,68990.0,68989.0,0.45785]
[1730127433650,0.02353551,68990.0,68989.0,0.45785]
[1730127433892,0.16848351,68990.0,68989.0,0.45785]
[1730127434114,0.02353551,68990.0,68989.0,0.45785]
[1730127434327,0.16848351,68990.0,68989.0,0.45785]
[1730127434777,0.145772,68990.0,68989.0,0.45785]
[1730127434998,0.168772,68990.0,68989.0,0.45785]
[1730127436669,0.32427581,68990.0,68989.0,0.45785]
[1730127437657,0.32427581,68990.0,68989.0,0.43485]
[1730127437865,0.39887581,68990.0,68989.0,0.44085]
[1730127438078,0.47747581,68990.0,68989.0,0.44085]
[1730127438285,0.47747581,68990.0,68989.0,0.43485]
[1730127439587,0.47847581,68990.0,68989.0,0.43485]
[1730127441205,0.50119042,68990.0,68989.0,0.43485]
[1730127441392,0.42259042,68990.0,68989.0,0.43485]
[1730127442297,0.34799042,68990.0,68989.0,0.43485]
[1730127442515,0.02453861,68990.0,68989.0,0.43485]
[1730127442733,0.001824,68990.0,68989.0,0.43485]
[1730127443366,0.146772,68990.0,68989.0,0.43485]
[1730127443571,0.001824,68990.0,68989.0,0.43485]
[1730127444243,0.024824,68990.0,68989.0,0.43485]
[1730127444689,0.001824,68990.0,68989.0,0.6592]
[1730127445149,0.001824,68990.0,68989.0,0.7565]
[1730127445364,0.001824,68990.0,68989.0,0.92582515]
[1730127446445,0.001824,68990.0,68989.0,0.7565]
[1730127446913,0.000824,68990.0,68989.0,0.7705]
[1730127447586,0.000824,68990.0,68989.0,0.7845]
[1730127448049,0.000824,68990.0,68989.0,0.7705]
[1730127448523,0.000824,68990.0,68989.0,0.7845]
[1730127448961,0.000824,68990.0,68989.0,0.7705]
[1730127449406,0.000824,68990.0,68989.0,0.7845]
[1730127450512,0.000824,68990.0,68989.0,0.7565]
[1730127450859,0.000824,68990.0,68989.0,0.7705]
[1730127451919,0.000824,68990.0,68989.0,0.7565]
[1730127452339,0.000824,68990.0,68989.0,0.7675]
[1730127452550,0.000824,68990.0,68989.0,0.45885]
[1730127452834,0.168772,68990.0,68989.0,0.44585]
[1730127453055,0.31927581,68990.0,68989.0,0.44585]
[1730127453280,0.31927581,68990.0,68989.0,0.45385]
[1730127453476,0.32427581,68990.0,68989.0,0.45385]
[1730127453686,0.34698952,68990.0,68989.0,0.45385]
[1730127454118,0.34698952,68990.0,68989.0,0.44285]
[1730127454382,0.34698952,68990.0,68989.0,0.43485]
[1730127454594,0.34898952,68990.0,68989.0,0.43585]
[1730127454811,0.32627581,68990.0,68989.0,0.43585]
[1730127455212,0.32427581,68990.0,68989.0,0.43485]
[1730127455716,0.32627581,68990.0,68989.0,0.43585]
[1730127456141,0.32627581,68990.0,68989.0,0.43685]
[1730127456935,0.32627581,68990.0,68989.0,0.43585]
[1730127457338,0.32627581,68990.0,68989.0,0.43685]
[1730127457714,0.32427581,68990.0,68989.0,0.43585]
[1730127458196,0.32727581,68990.0,68989.0,0.43685]
[1730127460090,0.17732781,68990.0,68989.0,0.43685]
[1730127460347,0.003824,68990.0,68989.0,0.43685]
[1730127460767,0.003824,68990.0,68989.0,0.5818]
[1730127460986,0.003824,68990.0,68989.0,0.43685]
[1730127461442,0.000824,68990.0,68989.0,0.43585]
[1730127461664,0.023824,68990.0,68989.0,0.43485]
[1730127461907,0.026824,68990.0,68989.0,0.43585]
[1730127462135,0.026824,68990.0,68989.0,0.43685]
[1730127462348,0.023824,68990.0,68989.0,0.43585]
[1730127462575,0.000824,68990.0,68989.0,0.43585]
[1730127462820,0.000824,68990.0,68989.0,0.44085]
[1730127463251,0.000824,68990.0,68989.0,0.5858]
[1730127463882,0.000824,68990.0,68989.0,0.44085]
[1730127466681,0.168772,68990.0,68989.0,0.44085]
[1730127466939,0.50560096,68990.0,68989.0,0.44085]
[1730127467161,0.50560096,68990.0,68989.0,0.006]
[1730127467393,0.50360096,68990.0,68989.0,0.006]
[1730127468063,0.50360096,68990.0,68989.0,0.005]
[1730127468488,0.50360096,68990.0,68989.0,0.006]
[1730127468698,0.50360096,68990.0,68989.0,0.001]
[1730127468906,0.005,68988.0,68987.0,0.001646]
[1730127469116,0.32345581,68988.0,68987.0,0.001646]
[1730127471682,0.167952,68988.0,68987.0,0.001646]
[1730127471925,0.167952,68988.0,68987.0,0.002646]
[1730127472822,0.170952,68988.0,68987.0,0.003646]
[1730127474164,0.19366672,68988.0,68987.0,0.003646]
[1730127474644,0.34917053,68988.0,68987.0,0.003646]
[1730127474859,0.32645581,68988.0,68987.0,0.003646]
[1730127476386,0.40105581,68988.0,68987.0,0.003646]
[1730127476616,0.57238096,68988.0,68987.0,0.003646]
[1730127476856,0.68238096,68988.0,68987.0,0.003646]
[1730127477087,0.72577691,68988.0,68987.0,0.003646]
[1730127477336,0.68238096,68988.0,68987.0,0.003646]
[1730127478611,0.68238096,68988.0,68987.0,0.003646]
[1730127479716,0.72577222,68988.0,68987.0,0.003646]
[1730127479926,0.68238096,68988.0,68987.0,0.003646]
[1730127480366,0.80436966,68988.0,68987.0,0.003646]
[1730127480600,0.8357419,68988.0,68987.0,0.003646]
[1730127480820,0.85845868,68988.0,68987.0,0.003646]
[1730127481059,0.85845801,68988.0,68987.0,0.003646]
[1730127481322,0.88015687,68988.0,68987.0,0.003646]
[1730127481520,0.92407196,68988.0,68987.0,0.003646]
[1730127481744,0.70429215,68981.0,68980.0,0.001646]
[1730127481962,1.00529977,68981.0,68980.0,0.001646]
[1730127482443,1.02801837,68981.0,68980.0,0.001646]
[1730127482905,1.02801837,68981.0,68971.0,0.00164]
[1730127482906,0.359586,68972.0,68971.0,0.00164]
[1730127483121,1.47609081,68972.0,68971.0,0.00164]
[1730127483339,1.62659462,68972.0,68971.0,0.00164]
[1730127483582,0.161992,68969.0,68962.0,0.2176026]
[1730127483801,0.77214611,68969.0,68962.0,0.2176026]
[1730127484005,1.02414611,68969.0,68962.0,0.2176026]
[1730127484229,0.76914611,68969.0,68962.0,0.2176026]
[1730127484439,0.59982096,68969.0,68962.0,0.2176026]
[1730127484669,0.76914611,68969.0,68962.0,0.2176026]
[1730127484884,0.76914611,68969.0,68956.0,0.00164]
[1730127484885,1.08483221,68969.0,68956.0,0.00164]
[1730127485115,1.28841321,68969.0,68956.0,0.00164]
[1730127485353,0.267,68958.0,68956.0,0.00164]
[1730127485589,0.68551881,68958.0,68956.0,0.00164]
[1730127485841,2.10254996,68958.0,68956.0,0.00164]
[1730127486075,2.33165377,68958.0,68956.0,0.00164]
[1730127486795,2.33165377,68958.0,68933.0,0.0815]
[1730127486796,0.285022,68955.0,68933.0,0.0815]
[1730127487009,0.412049,68942.0,68928.0,0.0922]
[1730127487236,0.85287796,68942.0,68928.0,0.0922]
[1730127487483,0.260057,68938.0,68922.0,0.14509]
[1730127487696,0.60288596,68938.0,68921.0,0.371683]
[1730127487946,0.60488596,68938.0,68921.0,0.371683]
[1730127488191,0.60488596,68938.0,68923.0,0.145088]
[1730127488415,0.60288596,68938.0,68925.0,0.5077716]
[1730127488623,0.60288596,68938.0,68926.0,0.2176026]
[1730127490418,0.60288596,68938.0,68929.0,0.145076]
[1730127490419,0.43356081,68938.0,68929.0,0.145076]
[1730127490648,0.43356081,68938.0,68926.0,0.2176026]
[1730127490649,0.60288596,68938.0,68926.0,0.2176026]
[1730127490907,0.62488596,68938.0,68937.0,0.00364]
[1730127491121,0.64761797,68938.0,68937.0,0.00364]
[1730127491344,0.46829282,68938.0,68937.0,0.00364]
[1730127491558,0.47829282,68938.0,68937.0,0.00364]
[1730127491778,0.64761797,68938.0,68937.0,0.00364]
[1730127492247,0.63761797,68938.0,68937.0,0.00364]
[1730127492474,0.64761797,68938.0,68937.0,0.00364]
[1730127492948,0.64961797,68938.0,68937.0,0.00364]
[1730127493636,0.64761797,68938.0,68937.0,0.00364]
[1730127494759,0.62488596,68938.0,68937.0,0.00364]
[1730127496290,0.77115043,68938.0,68937.0,0.00364]
[1730127496734,0.62488596,68938.0,68937.0,0.00364]
[1730127498760,0.64761871,68938.0,68937.0,0.00364]
[1730127501310,0.64961871,68938.0,68937.0,0.00364]
[1730127501494,0.64761871,68938.0,68937.0,0.00364]
[1730127502127,0.64961871,68938.0,68937.0,0.00364]
[1730127502334,0.87472252,68938.0,68937.0,0.00364]
[1730127502695,0.87472252,68938.0,68927.0,0.2162426]
[1730127502696,0.423078,68928.0,68927.0,0.2162426]
[1730127502908,0.74290696,68928.0,68927.0,0.2162426]
[1730127503045,0.145087,68924.0,68921.0,0.0815]
[1730127503259,0.17350381,68923.0,68921.0,0.226593]
[1730127503458,0.17350381,68923.0,68921.0,0.0815]
[1730127503688,0.27273309,68928.0,68925.0,0.145085]
[1730127503987,0.17350381,68927.0,68923.0,0.290178]
[1730127504146,0.17350381,68927.0,68924.0,0.145087]
[1730127504379,0.02273309,68928.0,68927.0,0.145081]
[1730127504612,0.02673309,68928.0,68927.0,0.145081]
[1730127505034,0.02273309,68928.0,68925.0,0.145083]
[1730127505237,0.145073,68931.0,68926.0,0.145082]
[1730127505437,0.15050381,68930.0,68926.0,0.145082]
[1730127505663,0.15050381,68930.0,68922.0,0.290183]
[1730127505877,0.29557781,68930.0,68925.0,0.145085]
[1730127506108,0.29557781,68930.0,68922.0,0.290183]
[1730127506326,0.29557781,68930.0,68926.0,0.145083]
[1730127506519,0.39013,68935.0,68922.0,0.290183]
[1730127506520,0.2406026,68934.0,68923.0,0.1754]
[1730127506762,0.2406026,68934.0,68930.0,0.145074]
[1730127506763,0.15050381,68933.0,68930.0,0.145074]
[1730127506953,0.15050381,68933.0,68929.0,0.145075]
[1730127507079,0.15050381,68933.0,68929.0,0.140075]
[1730127507287,0.15050381,68933.0,68925.0,0.002]
[1730127507288,0.1,68935.0,68930.0,0.0787]
[1730127507516,0.023,68939.0,68937.0,0.145059]
[1730127507756,0.15050381,68938.0,68937.0,0.145059]
[1730127507957,0.15050381,68938.0,68937.0,0.0787]
[1730127508830,0.15050381,68938.0,68937.0,0.0797]
[1730127509255,0.29556081,68938.0,68937.0,0.0787]
[1730127509698,0.29956081,68938.0,68937.0,0.0787]
[1730127509961,0.29956081,68938.0,68932.0,0.0787]
[1730127509962,0.145068,68933.0,68932.0,0.0787]
[1730127510180,0.46489696,68933.0,68932.0,0.0787]
[1730127510594,0.48789696,68933.0,68932.0,0.0787]
[1730127511469,0.34282896,68933.0,68932.0,0.0787]
[1730127511902,0.17350381,68933.0,68932.0,0.0787]
[1730127512774,0.31857181,68933.0,68932.0,0.0787]
[1730127513186,0.31857181,68933.0,68932.0,0.0847]
[1730127513598,0.31857181,68933.0,68932.0,0.0837]
[1730127514027,0.32057181,68933.0,68932.0,0.0837]
[1730127514229,0.32057181,68933.0,68932.0,0.005]
[1730127514434,0.48989696,68933.0,68932.0,0.005]
[1730127514672,0.49689696,68933.0,68932.0,0.005]
[1730127514875,0.49489696,68933.0,68932.0,0.005]
[1730127515313,0.49689696,68933.0,68932.0,0.005]
[1730127515492,0.74577803,68933.0,68932.0,0.005]
[1730127515724,0.150074,68930.0,68929.0,0.000824]
[1730127515949,0.78168481,68930.0,68929.0,0.000824]
[1730127516501,0.500095,68920.0,68919.0,0.2176026]
[1730127516690,0.84292396,68920.0,68919.0,0.2176026]
[1730127516889,0.84292396,68920.0,68918.0,0.001642]
[1730127516890,0.273097,68919.0,68918.0,0.001642]
[1730127517094,0.42360081,68919.0,68918.0,0.001642]
[1730127517596,0.67360081,68919.0,68918.0,0.001642]
[1730127518970,1.04170722,68919.0,68918.0,0.001642]
[1730127519187,0.82410462,68919.0,68918.0,0.001642]
[1730127519615,0.82610462,68919.0,68918.0,0.002642]
[1730127519835,0.83810462,68919.0,68918.0,0.002642]
[1730127520349,0.85710462,68919.0,68918.0,0.003642]
[1730127520586,1.18540662,68919.0,68918.0,0.003642]
[1730127520795,1.25393851,68919.0,68918.0,0.003642]
[1730127521239,1.21014602,68919.0,68918.0,0.003642]
[1730127521455,1.24672489,68919.0,68918.0,0.003642]
[1730127521656,1.21014602,68919.0,68918.0,0.003642]
[1730127522088,1.24672489,68919.0,68918.0,0.003642]
[1730127522298,1.21014602,68919.0,68918.0,0.003642]
[1730127522506,0.400123,68907.0,68906.0,0.2176026]
[1730127522753,0.74295196,68907.0,68906.0,0.2176026]
[1730127523013,0.150131,68903.0,68902.0,0.000821]
[1730127523217,0.49295996,68903.0,68902.0,0.000821]
[1730127523918,0.30063481,68903.0,68902.0,0.000821]
[1730127524132,0.15550381,68903.0,68902.0,0.000821]
[1730127524359,0.15050381,68903.0,68902.0,0.000821]
[1730127524604,0.15050381,68903.0,68902.0,0.324954]
[1730127524820,0.02274109,68908.0,68907.0,0.145123]
[1730127525228,0.2226026,68918.0,68906.0,0.290249]
[1730127525497,0.15050381,68917.0,68913.0,0.145109]
[1730127526151,0.15050381,68917.0,68912.0,0.145112]
[1730127526353,0.46493096,68917.0,68909.0,0.290237]
[1730127526578,0.31982896,68917.0,68911.0,0.145113]
[1730127526829,0.46493196,68917.0,68911.0,0.145113]
[1730127527027,0.145104,68916.0,68907.0,0.290242]
[1730127527243,0.15050381,68915.0,68910.0,0.145115]
[1730127527927,0.145109,68914.0,68908.0,0.14512]
[1730127528172,0.16932515,68909.0,68905.0,0.145125]
[1730127528372,0.15050381,68908.0,68904.0,0.145127]
[1730127528792,0.15050381,68908.0,68905.0,0.145126]
[1730127529230,0.22602111,68908.0,68907.0,0.000824]
[1730127530101,0.29562481,68908.0,68907.0,0.000824]
[1730127530789,0.30062481,68908.0,68907.0,0.000824]
[1730127531910,0.32362481,68908.0,68907.0,0.000824]
[1730127532342,0.32662481,68908.0,68907.0,0.000824]
[1730127532783,0.32362481,68908.0,68907.0,0.000824]
[1730127533014,0.30062481,68908.0,68907.0,0.000824]
[1730127533238,0.31062481,68908.0,68907.0,0.001824]
[1730127533664,0.3333653,68908.0,68907.0,0.001824]
[1730127533873,0.3373653,68908.0,68907.0,0.001824]
[1730127534561,0.3473653,68908.0,68907.0,0.002824]
[1730127535443,0.52086911,68908.0,68907.0,0.002824]
[1730127535733,0.63086911,68908.0,68907.0,0.002824]
[1730127536413,0.4803653,68908.0,68907.0,0.002824]
[1730127536867,0.4703653,68908.0,68907.0,0.001824]
[1730127537097,0.4523653,68908.0,68907.0,0.002824]
[1730127537315,0.4423653,68908.0,68907.0,0.002824]
[1730127537530,0.32462481,68908.0,68907.0,0.002824]
[1730127537981,0.49394996,68908.0,68907.0,0.002824]
[1730127538640,0.5582367,68908.0,68907.0,0.002824]
[1730127538865,0.49394996,68908.0,68907.0,0.002824]
[1730127539953,0.51694996,68908.0,68907.0,0.002824]
[1730127540639,0.49394996,68908.0,68907.0,0.002824]
[1730127541308,0.32462481,68908.0,68907.0,0.002824]
[1730127541737,0.49394996,68908.0,68907.0,0.002824]
[1730127544618,0.32462481,68908.0,68907.0,0.173924]
[1730127546113,0.31962481,68908.0,68907.0,0.173924]
[1730127548698,0.45206601,68908.0,68907.0,0.173924]
[1730127549566,0.97699376,68908.0,68907.0,0.002824]
[1730127549779,0.97699376,68908.0,68902.0,0.000821]
[1730127549780,0.283131,68903.0,68902.0,0.000821]
[1730127550015,1.74164614,68903.0,68902.0,0.000821]
[1730127550231,1.89214995,68903.0,68902.0,0.000821]
[1730127550681,1.80828295,68903.0,68902.0,0.000821]
[1730127550912,0.64680599,68903.0,68902.0,0.000821]
[1730127551301,0.60295996,68903.0,68902.0,0.000821]
[1730127551498,0.87570457,68903.0,68902.0,0.000821]
[1730127552480,0.62470457,68903.0,68902.0,0.001821]
[1730127552650,0.62970457,68903.0,68902.0,0.001821]
[1730127552887,0.62470457,68903.0,68902.0,0.001821]
[1730127553090,0.60670457,68903.0,68902.0,0.001821]
[1730127553310,0.62070457,68903.0,68902.0,0.001821]
[1730127553957,0.51570457,68903.0,68902.0,0.001821]
[1730127554167,0.50670457,68903.0,68902.0,0.001821]
[1730127554368,0.48770457,68903.0,68902.0,0.000821]
[1730127555005,0.50170457,68903.0,68902.0,0.000821]
[1730127555391,0.48770457,68903.0,68902.0,0.000821]
[1730127555638,0.83577756,68903.0,68902.0,0.000821]
[1730127555853,0.50170457,68903.0,68902.0,0.000821]
[1730127556243,0.51570457,68903.0,68902.0,0.000821]
[1730127556698,0.50170457,68903.0,68902.0,0.000821]
[1730127556900,0.18724842,68903.0,68902.0,0.000821]
[1730127557104,0.17850381,68903.0,68902.0,0.000821]
[1730127557321,0.17850381,68903.0,68902.0,0.145954]
[1730127557322,0.028,68903.0,68902.0,0.145954]
[1730127557728,0.028,68903.0,68902.0,0.238654]
[1730127558388,0.014,68903.0,68902.0,0.238654]
[1730127559695,0.290239,68909.0,68902.0,0.093521]
[1730127559927,0.16932515,68910.0,68902.0,0.093521]
[1730127559928,0.15050381,68908.0,68902.0,0.093521]
[1730127560146,0.003,68903.0,68902.0,0.238654]
[1730127560350,0.15050381,68908.0,68902.0,0.093521]
[1730127560561,0.15050381,68908.0,68903.0,0.0806]
[1730127560698,0.15050381,68908.0,68907.0,0.145123]
[1730127561110,0.1,68914.0,68903.0,0.370863]
[1730127561317,0.29561481,68913.0,68904.0,0.290258]
[1730127561524,0.29561381,68913.0,68904.0,0.290258]
[1730127561706,0.29561381,68913.0,68908.0,0.14512]
[1730127562115,0.29561381,68913.0,68905.0,0.290254]
[1730127562116,0.15050381,68913.0,68905.0,0.290254]
[1730127562329,0.15050381,68913.0,68903.0,0.0806]
[1730127562556,0.16932515,68910.0,68903.0,0.0806]
[1730127562775,0.29562281,68909.0,68903.0,0.225729]
[1730127562971,0.145123,68908.0,68903.0,0.225729]
[1730127563166,0.15050381,68908.0,68903.0,0.0806]
[1730127563383,0.30962481,68908.0,68903.0,0.22573]
[1730127563782,0.29562481,68908.0,68903.0,0.22573]
[1730127564655,0.15050381,68908.0,68905.0,0.145126]
[1730127564870,0.15050381,68908.0,68904.0,0.290258]
[1730127565109,0.29562481,68908.0,68903.0,0.225731]
[1730127565316,0.15050381,68908.0,68903.0,0.225731]
[1730127566219,0.145123,68907.0,68903.0,0.0806]
[1730127566393,0.16615181,68908.0,68904.0,0.145127]
[1730127566648,0.16615181,68908.0,68907.0,0.145123]
[1730127566868,0.18015181,68908.0,68903.0,0.0806]
[1730127567077,0.18015181,68908.0,68903.0,0.225729]
[1730127567282,0.31127381,68908.0,68903.0,0.0806]
[1730127567499,0.15215181,68908.0,68903.0,0.0806]
[1730127567722,0.014,68907.0,68904.0,0.145127]
[1730127567930,0.014,68907.0,68903.0,0.0806]
[1730127567931,0.173123,68907.0,68903.0,0.0806]
[1730127568137,0.028,68907.0,68903.0,0.0806]
[1730127568340,0.29727281,68908.0,68903.0,0.0806]
[1730127568785,0.145124,68907.0,68903.0,0.0806]
[1730127569039,0.29727281,68908.0,68903.0,0.0806]
[1730127569264,0.145123,68907.0,68903.0,0.0806]
[1730127569693,0.15215181,68908.0,68903.0,0.0806]
[1730127569694,0.15050381,68906.0,68903.0,0.0806]
[1730127569902,0.145128,68905.0,68903.0,0.0806]
[1730127570105,0.15050381,68904.0,68903.0,0.0806]
[1730127571547,0.145131,68903.0,68902.0,0.000821]
[1730127571755,0.42363481,68903.0,68902.0,0.000821]
[1730127572380,0.42563481,68903.0,68902.0,0.000821]
[1730127572580,0.43563481,68903.0,68902.0,0.000821]
[1730127573483,0.43363481,68903.0,68902.0,0.000821]
[1730127573638,0.58413862,68903.0,68902.0,0.000821]
[1730127573817,0.59813862,68903.0,68902.0,0.000821]
[1730127574026,0.61213862,68903.0,68902.0,0.000821]
[1730127574449,0.58613862,68903.0,68902.0,0.000821]
[1730127575056,0.61413862,68903.0,68902.0,0.000821]
[1730127576498,0.61213862,68903.0,68902.0,0.000821]
[1730127576705,0.65744975,68903.0,68902.0,0.000821]
[1730127576904,0.72293851,68903.0,68902.0,0.000821]
[1730127577257,1.22964466,68903.0,68902.0,0.000821]
[1730127577781,1.16467796,68903.0,68902.0,0.000821]
[1730127577992,1.25130023,68903.0,68902.0,0.000821]
[1730127578406,1.16467796,68903.0,68902.0,0.000821]
[1730127579261,1.25130023,68903.0,68902.0,0.000821]
[1730127580698,1.08197508,68903.0,68902.0,0.000821]
[1730127580985,1.01217415,68903.0,68902.0,0.000821]
[1730127581213,0.85546719,68903.0,68902.0,0.000821]
[1730127581484,0.81272612,68903.0,68902.0,0.000821]
[1730127582860,0.25,68881.0,68880.0,0.2176026]
[1730127583052,0.84300596,68881.0,68880.0,0.2176026]
[1730127583253,0.17319,68875.0,68872.0,0.2184236]
[1730127583453,0.49301896,68875.0,68872.0,0.2184236]
[1730127583606,0.32369381,68875.0,68872.0,0.000821]
[1730127586112,0.15050381,68875.0,68872.0,0.000821]
[1730127586326,0.16450381,68875.0,68872.0,0.000821]
[1730127586560,0.17850381,68875.0,68872.0,0.146017]
[1730127586848,0.32369381,68875.0,68872.0,0.000821]
[1730127588135,0.43639785,68875.0,68872.0,0.000821]
[1730127588358,0.32369381,68875.0,68872.0,0.000821]
[1730127591469,0.37444442,68875.0,68872.0,0.000821]
[1730127591706,0.37644442,68875.0,68872.0,0.000821]
[1730127591913,0.47444442,68875.0,68872.0,0.000821]
[1730127592338,0.69021442,68875.0,68872.0,0.000821]
[1730127592553,0.45644442,68875.0,68872.0,0.000821]
[1730127592761,0.61568779,68875.0,68872.0,0.000821]
[1730127592967,0.62968779,68875.0,68872.0,0.000821]
[1730127593174,0.88199479,68875.0,68872.0,0.000821]
[1730127593386,0.61568779,68875.0,68872.0,0.000821]
[1730127593602,0.86568779,68875.0,68874.0,0.000924]
[1730127593808,0.85168779,68875.0,68874.0,0.000924]
[1730127594019,0.86568779,68875.0,68874.0,0.000924]
[1730127594241,0.87968779,68875.0,68874.0,0.000924]
[1730127594449,0.73444442,68875.0,68874.0,0.000924]
[1730127594669,0.72444442,68875.0,68874.0,0.000924]
[1730127595091,0.73444442,68875.0,68874.0,0.000924]
[1730127595506,0.73644442,68875.0,68874.0,0.000924]
[1730127595735,0.88494823,68875.0,68874.0,0.000924]
[1730127595952,0.73444442,68875.0,68874.0,0.000924]
[1730127596172,0.72944442,68875.0,68874.0,0.000924]
[1730127597082,0.69669381,68875.0,68874.0,0.000924]
[1730127597324,0.42850381,68875.0,68874.0,0.091424]
[1730127597571,0.42850381,68875.0,68874.0,0.171724]
[1730127597822,0.57369381,68875.0,68874.0,0.171724]
[1730127598064,0.17850381,68875.0,68874.0,0.316916]
[1730127598304,0.028,68875.0,68874.0,0.316916]
[1730127599489,0.295334,68887.0,68875.0,0.1709]
[1730127599490,0.3627706,68886.0,68875.0,0.1709]
[1730127599727,0.3627706,68886.0,68874.0,0.000924]
[1730127599728,0.15050381,68885.0,68879.0,0.0772]
[1730127599944,0.15050381,68885.0,68881.0,0.222377]
[1730127600188,0.15050381,68885.0,68881.0,0.512732]
[1730127600477,0.15050381,68885.0,68881.0,0.0772]
[1730127600724,0.2176026,68892.0,68891.0,0.323456]
[1730127601207,0.2176026,68892.0,68875.0,0.1783]
[1730127601208,0.145181,68880.0,68875.0,0.1783]
[1730127601456,0.145188,68876.0,68875.0,0.1783]
[1730127601747,0.145188,68876.0,68874.0,0.001924]
[1730127601945,0.17319,68875.0,68874.0,0.001924]
[1730127602195,0.27319,68875.0,68874.0,0.001924]
[1730127602660,0.24519,68875.0,68874.0,0.001924]
[1730127603570,0.24519,68875.0,68874.0,0.000924]
[1730127604535,0.25919,68875.0,68874.0,0.000924]
[1730127604778,0.24519,68875.0,68874.0,0.000924]
[1730127605259,0.28519,68875.0,68874.0,0.000924]
[1730127605501,0.27519,68875.0,68874.0,0.000924]
[1730127605754,0.28519,68875.0,68874.0,0.000924]
[1730127605968,0.60019762,68875.0,68874.0,0.000924]
[1730127606424,0.59819762,68875.0,68874.0,0.000924]
[1730127606639,0.44769381,68875.0,68874.0,0.000924]
[1730127606885,0.46369381,68875.0,68874.0,0.000924]
[1730127607098,0.46169381,68875.0,68874.0,0.000924]
[1730127607340,0.44769381,68875.0,68874.0,0.000924]
[1730127607562,0.43269381,68875.0,68874.0,0.000924]
[1730127607810,0.16450381,68875.0,68874.0,0.081624]
[1730127608039,0.29569381,68875.0,68874.0,0.081624]
[1730127608298,0.30969381,68875.0,68874.0,0.081624]
[1730127608523,0.32369381,68875.0,68874.0,0.081624]
[1730127608984,0.30969381,68875.0,68874.0,0.081624]
[1730127609452,0.32369381,68875.0,68874.0,0.081624]
[1730127609687,0.32369381,68875.0,68874.0,0.153924]
[1730127610164,0.17850381,68875.0,68874.0,0.153924]
[1730127610364,0.32369381,68875.0,68874.0,0.153924]
[1730127610571,0.30969381,68875.0,68874.0,0.153924]
[1730127610800,0.16450381,68875.0,68874.0,0.153924]
[1730127611012,0.32369381,68875.0,68874.0,0.153924]
[1730127611230,0.16450381,68875.0,68874.0,0.153924]
[1730127611439,0.15050381,68875.0,68874.0,0.153924]
[1730127611660,0.30969381,68875.0,68874.0,0.153924]
[1730127611868,0.32369381,68875.0,68874.0,0.153924]
[1730127612303,0.34669381,68875.0,68874.0,0.073224]
[1730127612741,0.44869381,68875.0,68874.0,0.073224]
[1730127612953,0.44669381,68875.0,68874.0,0.073224]
[1730127613869,0.46944602,68875.0,68874.0,0.073224]
[1730127614726,0.56289871,68875.0,68874.0,0.073224]
[1730127615181,0.60662061,68875.0,68874.0,0.073224]
[1730127615386,0.86528761,68875.0,68874.0,0.073224]
[1730127615610,0.86728761,68875.0,68874.0,0.073224]
[1730127615832,0.85328761,68875.0,68874.0,0.073224]